bitfinex/quotes_BTCUSD_20240828
["timestamp","ask_amount","ask_price","bid_price","bid_amount"]
[1724839083883,0.3686,60309.0,60303.0,0.165829]
[1724839084106,0.00012,60316.0,60303.0,0.93246083]
[1724839084339,0.00012,60316.0,60303.0,1.4325796]
[1724839084340,0.01219571,60304.0,60303.0,1.4325796]
[1724839084565,0.00416754,60304.0,60303.0,1.7642376]
[1724839084793,0.00012,60316.0,60305.0,0.829117]
[1724839085002,0.00012,60316.0,60305.0,1.42922477]
[1724839085487,0.00012,60316.0,60313.0,0.829007]
[1724839085747,0.00012,60316.0,60313.0,0.929007]
[1724839085898,0.00012,60316.0,60313.0,1.82537077]
[1724839086107,0.00012,60316.0,60313.0,2.15697377]
[1724839086308,0.00012,60316.0,60313.0,2.3677721]
[1724839086517,0.06567081,60318.0,60317.0,1.160533]
[1724839086889,0.00110152,60333.0,60329.0,0.165757]
[1724839087094,0.00110152,60333.0,60329.0,1.09724777]
[1724839087308,0.00110152,60333.0,60329.0,1.43207734]
[1724839087309,2.00810576,60330.0,60329.0,1.43207734]
[1724839087512,2.00810576,60330.0,60329.0,1.76027777]
[1724839087715,2.00810576,60330.0,60329.0,0.265757]
[1724839087853,2.00810576,60330.0,60324.0,0.33154]
[1724839087854,2.00810576,60330.0,60324.0,0.02677241]
[1724839088067,2.00810576,60330.0,60325.0,0.00331487]
[1724839088265,2.00810576,60330.0,60308.0,0.393]
[1724839088505,2.00810576,60330.0,60310.0,0.50540786]
[1724839088704,2.00810576,60330.0,60317.0,0.366]
[1724839088904,2.00810576,60330.0,60325.0,0.00480029]
[1724839088905,0.1801,60328.0,60325.0,0.00480029]
[1724839089438,0.00810576,60327.0,60325.0,0.00480029]
[1724839089647,0.00810576,60327.0,60322.0,0.00480029]
[1724839089849,0.00810576,60327.0,60317.0,0.00480029]
[1724839089998,0.00810576,60327.0,60314.0,0.00480029]
[1724839089999,0.37388272,60326.0,60314.0,0.00480029]
[1724839090203,0.37388272,60326.0,60294.0,0.51040785]
[1724839090204,0.21629553,60325.0,60302.0,0.00480029]
[1724839090399,0.21629553,60325.0,60294.0,0.50540786]
[1724839090400,0.1903,60320.0,60301.0,0.00480029]
[1724839090667,0.00019971,60324.0,60299.0,0.00480029]
[1724839091106,0.331598,60314.0,60297.0,0.00480029]
[1724839091222,0.165796,60315.0,60297.0,0.00480029]
[1724839091429,0.00019971,60325.0,60300.0,0.00480029]
[1724839091635,2.005,60330.0,60295.0,0.00480029]
[1724839091636,0.00019971,60319.0,60295.0,0.00480029]
[1724839091837,0.41883976,60322.0,60290.0,0.00480029]
[1724839091838,0.00019971,60317.0,60290.0,0.00480029]
[1724839092112,0.00019971,60315.0,60290.0,0.00480029]
[1724839092319,0.00019971,60310.0,60283.0,0.00480029]
[1724839092473,0.00019971,60308.0,60283.0,0.00480029]
[1724839092672,0.03100262,60313.0,60279.0,0.50540786]
[1724839092673,0.165868,60289.0,60279.0,0.50540786]
[1724839092894,0.00019971,60301.0,60279.0,0.50540786]
[1724839093114,0.3905,60284.0,60276.0,0.00480029]
[1724839093327,0.00822766,60283.0,60276.0,0.00480029]
[1724839093530,0.00822766,60283.0,60272.0,0.00480029]
[1724839093531,0.165891,60281.0,60272.0,0.00480029]
[1724839093739,0.3905,60281.0,60272.0,0.00480029]
[1724839093962,0.3905,60281.0,60269.0,0.0017]
[1724839093963,0.00822766,60280.0,60269.0,0.00650029]
[1724839094705,0.00822766,60280.0,60269.0,0.00480029]
[1724839094706,0.02601366,60278.0,60269.0,0.00480029]
[1724839094908,0.38691554,60277.0,60264.0,0.00480029]
[1724839095402,0.38691554,60277.0,60268.0,0.165925]
[1724839095602,0.38691554,60277.0,60269.0,0.00331801]
[1724839095806,0.38691554,60277.0,60276.0,0.00480029]
[1724839095997,0.38691554,60277.0,60256.0,0.03339]
[1724839095998,0.38691554,60277.0,60267.0,0.00480029]
[1724839096136,0.38691554,60277.0,60264.0,0.01734742]
[1724839096137,0.38691554,60277.0,60264.0,0.00480029]
[1724839096537,0.38691554,60277.0,60266.0,0.00480029]
[1724839096738,0.38691554,60277.0,60263.0,0.331873]
[1724839096739,0.38691554,60277.0,60274.0,0.00480029]
[1724839096939,0.38691554,60277.0,60268.0,0.00480029]
[1724839097167,0.38691554,60277.0,60269.0,0.0008965]
[1724839097367,0.165904,60276.0,60269.0,0.0008965]
[1724839097539,0.38691554,60277.0,60269.0,0.0008965]
[1724839097540,0.3789,60277.0,60269.0,0.0008965]
[1724839097743,0.00801554,60276.0,60269.0,0.0008965]
[1724839099029,0.00757024,60275.0,60271.0,0.165916]
[1724839099148,0.00757024,60275.0,60274.0,0.497727]
[1724839099347,0.02601366,60278.0,60276.0,0.331807]
[1724839099573,0.02601366,60278.0,60269.0,0.0008965]
[1724839099574,0.00757024,60277.0,60269.0,0.0008965]
[1724839099964,0.00757024,60277.0,60276.0,0.49771]
[1724839100166,0.02601366,60278.0,60276.0,0.49771]
[1724839100167,0.02601366,60278.0,60277.0,0.1659]
[1724839100365,0.005,60322.0,60277.0,0.1659]
[1724839100366,0.50622286,60301.0,60290.0,0.03339]
[1724839100571,0.50622286,60301.0,60287.0,0.3805]
[1724839100572,0.00757024,60299.0,60287.0,0.3805]
[1724839100802,0.00757024,60299.0,60298.0,0.165842]
[1724839101003,0.00757024,60299.0,60291.0,0.331723]
[1724839101206,0.000815,60301.0,60287.0,0.165871]
[1724839101413,0.000815,60301.0,60277.0,0.1]
[1724839101414,0.16584,60299.0,60277.0,0.1]
[1724839101661,0.16584,60299.0,60269.0,0.0008965]
[1724839101662,0.1962,60297.0,60269.0,0.0008965]
[1724839101876,0.4102,60296.0,60270.0,0.00331794]
[1724839102178,0.165859,60292.0,60270.0,0.00331794]
[1724839102383,0.165859,60292.0,60269.0,0.0028965]
[1724839102384,0.3752,60292.0,60269.0,0.0028965]
[1724839102716,0.3752,60281.0,60269.0,0.0028965]
[1724839103028,0.165892,60280.0,60269.0,0.0028965]
[1724839103232,0.00757024,60280.0,60269.0,0.0028965]
[1724839103432,0.3825,60279.0,60269.0,0.0028965]
[1724839103690,0.02601585,60278.0,60269.0,0.0028965]
[1724839103848,0.03358609,60278.0,60269.0,0.0028965]
[1724839105493,0.03358609,60278.0,60270.0,0.00331838]
[1724839105751,0.03358609,60278.0,60270.0,0.00480029]
[1724839105955,0.03358609,60278.0,60272.0,0.165912]
[1724839106145,0.03358609,60278.0,60270.0,0.00480029]
[1724839106359,0.03358609,60278.0,60269.0,0.00769679]
[1724839106501,0.03358609,60278.0,60271.0,0.00480029]
[1724839106683,0.03358609,60278.0,60270.0,0.00811818]
[1724839106886,0.03358609,60278.0,60270.0,0.00480029]
[1724839107151,0.41948609,60278.0,60270.0,0.00480029]
[1724839107471,0.4192865,60278.0,60272.0,0.331828]
[1724839107623,0.4192865,60278.0,60270.0,0.00480029]
[1724839107826,0.4192865,60278.0,60277.0,0.331801]
[1724839107827,0.0333865,60278.0,60277.0,0.331801]
[1724839108032,0.0333865,60278.0,60277.0,1.223702]
[1724839108233,0.02581626,60278.0,60277.0,1.223702]
[1724839108451,0.001,60285.0,60277.0,1.223702]
[1724839108452,0.001,60285.0,60284.0,0.829405]
[1724839108612,0.50640786,60295.0,60294.0,0.165853]
[1724839108812,0.001,60295.0,60294.0,0.49756]
[1724839109011,0.00850098,60295.0,60294.0,0.49756]
[1724839109264,0.001,60295.0,60292.0,0.165859]
[1724839109463,0.001,60295.0,60293.0,0.165854]
[1724839109665,0.001,60295.0,60294.0,0.49756]
[1724839110395,0.001,60295.0,60294.0,0.829267]
[1724839110606,0.001,60300.0,60299.0,0.8292]
[1724839110845,0.001,60300.0,60299.0,0.49752]
[1724839111078,0.001,60300.0,60284.0,0.1]
[1724839111079,0.001,60300.0,60290.0,0.331729]
[1724839111289,0.001,60300.0,60299.0,0.49752]
[1724839111460,0.001,60300.0,60299.0,1.16088]
[1724839111660,0.001,60300.0,60299.0,0.8292]
[1724839112104,0.001,60300.0,60299.0,1.0155]
[1724839112308,0.000815,60301.0,60299.0,1.0155]
[1724839112309,0.001815,60301.0,60299.0,0.78644077]
[1724839112509,0.02600267,60314.0,60313.0,0.497404]
[1724839112700,0.39973737,60332.0,60313.0,0.1]
[1724839112939,0.39973737,60332.0,60324.0,0.497314]
[1724839113140,0.02599759,60327.0,60324.0,0.497314]
[1724839113350,0.39973737,60332.0,60324.0,0.497314]
[1724839113351,0.00173737,60332.0,60324.0,0.497314]
[1724839113968,0.00173737,60332.0,60322.0,0.165775]
[1724839114139,0.398,60324.0,60315.0,0.165795]
[1724839114379,0.398,60324.0,60317.0,0.16579]
[1724839114585,0.398,60324.0,60306.0,0.5628]
[1724839114815,0.00173737,60332.0,60298.0,0.165842]
[1724839114816,0.165791,60317.0,60298.0,0.165842]
[1724839115017,0.1873,60322.0,60301.0,0.50540786]
[1724839115196,0.1873,60322.0,60299.0,0.00480029]
[1724839115197,0.3712,60320.0,60299.0,0.00480029]
[1724839115399,0.165799,60314.0,60296.0,0.165845]
[1724839115703,0.00019971,60324.0,60286.0,0.1843]
[1724839115704,0.331614,60312.0,60294.0,0.00480029]
[1724839115838,0.1873,60313.0,60295.0,0.16585]
[1724839116044,0.007715,60311.0,60301.0,0.03295136]
[1724839116256,0.1873,60313.0,60302.0,0.00480029]
[1724839116448,0.1873,60313.0,60304.0,0.331651]
[1724839116449,0.007715,60310.0,60304.0,0.331651]
[1724839116658,0.000815,60325.0,60305.0,0.00331633]
[1724839116659,0.1845,60322.0,60305.0,0.00331633]
[1724839116857,0.1845,60322.0,60302.0,0.3915]
[1724839117229,0.007715,60321.0,60303.0,0.00331578]
[1724839117442,0.007715,60321.0,60303.0,0.03670578]
[1724839117563,0.1845,60322.0,60306.0,0.165819]
[1724839117773,0.1845,60322.0,60302.0,0.3915]
[1724839117774,0.007715,60321.0,60302.0,0.331658]
[1724839117970,0.165788,60318.0,60304.0,0.00480029]
[1724839118169,0.331598,60314.0,60301.0,0.03295136]
[1724839118415,0.2030315,60322.0,60301.0,0.03295136]
[1724839118416,0.4004,60311.0,60301.0,0.03295136]
[1724839118815,0.4004,60311.0,60303.0,0.00480029]
[1724839119032,0.007715,60310.0,60303.0,0.00480029]
[1724839119445,0.007715,60310.0,60309.0,0.165812]
[1724839119896,0.007715,60310.0,60309.0,0.50075256]
[1724839120104,0.1845,60322.0,60307.0,0.1848]
[1724839120499,0.007715,60321.0,60307.0,0.1848]
[1724839120698,0.007715,60321.0,60320.0,0.497346]
[1724839121152,0.000815,60325.0,60323.0,0.165772]
[1724839121368,0.000815,60325.0,60310.0,0.331615]
[1724839121570,0.000815,60325.0,60290.0,0.45118713]
[1724839121571,0.007715,60324.0,60311.0,0.1]
[1724839121886,0.007715,60324.0,60312.0,0.00331555]
[1724839122085,0.18978,60331.0,60316.0,0.388]
[1724839122086,1.39733,60330.0,60316.0,0.388]
[1724839122309,0.78613,60330.0,60329.0,1.733102]
[1724839122519,0.65593463,60330.0,60329.0,1.833102]
[1724839122731,0.62598571,60330.0,60329.0,1.401587]
[1724839122949,0.62598571,60330.0,60329.0,0.828787]
[1724839123356,0.62598571,60330.0,60329.0,0.03339]
[1724839123586,0.62309813,60330.0,60329.0,0.199147]
[1724839123794,0.62309813,60330.0,60329.0,0.024767]
[1724839123990,0.62309813,60330.0,60309.0,0.388]
[1724839123991,0.3906,60329.0,60309.0,0.388]
[1724839124222,0.000819,60321.0,60310.0,0.331619]
[1724839124423,0.000819,60321.0,60310.0,0.165808]
[1724839124687,0.556359,60329.0,60293.0,0.388]
[1724839124688,0.3906,60329.0,60322.0,0.03212088]
[1724839125403,0.165762,60328.0,60322.0,0.03212088]
[1724839125593,0.3906,60329.0,60322.0,0.03212088]
[1724839125853,0.16577,60325.0,60322.0,0.03212088]
[1724839126020,0.331521,60328.0,60305.0,0.50540786]
[1724839126021,0.1999,60327.0,60305.0,0.50540786]
[1724839126255,0.165783,60320.0,60305.0,0.50540786]
[1724839126379,0.1999,60327.0,60305.0,0.50540786]
[1724839126380,0.165785,60319.0,60305.0,0.50540786]
[1724839126585,0.1999,60327.0,60314.0,0.165797]
[1724839126784,0.3838,60326.0,60312.0,0.331605]
[1724839127011,0.3838,60326.0,60315.0,0.165795]
[1724839127330,0.3838,60326.0,60314.0,0.165798]
[1724839127552,0.3838,60326.0,60306.0,0.33164]
[1724839127751,0.3838,60326.0,60311.0,0.165806]
[1724839127922,0.3838,60326.0,60310.0,0.165809]
[1724839128135,0.3838,60326.0,60302.0,0.0026]
[1724839128333,0.3838,60326.0,60311.0,0.165806]
[1724839128562,0.3838,60326.0,60312.0,0.00331589]
[1724839128760,0.3838,60326.0,60313.0,0.00331542]
[1724839128973,0.3838,60326.0,60323.0,0.165773]
[1724839129173,0.3838,60326.0,60316.0,0.331582]
[1724839129174,0.0837,60327.0,60321.0,0.331559]
[1724839129347,0.0837,60327.0,60316.0,0.331582]
[1724839129348,0.0837,60327.0,60322.0,0.165776]
[1724839129531,0.0837,60327.0,60319.0,0.331568]
[1724839129532,0.00818,60331.0,60319.0,0.33157]
[1724839129730,0.00818,60331.0,60310.0,0.331616]
[1724839129957,0.00818,60331.0,60313.0,0.165799]
[1724839130113,0.331517,60329.0,60311.0,0.00019959]
[1724839130319,0.331564,60321.0,60311.0,0.00019959]
[1724839130514,0.00019971,60323.0,60311.0,0.00019959]
[1724839130515,0.165786,60319.0,60311.0,0.00019959]
[1724839130739,0.01659857,60318.0,60311.0,0.00019959]
[1724839131034,0.00720551,60318.0,60311.0,0.00019959]
[1724839131263,0.00720551,60318.0,60317.0,0.497371]
[1724839131460,0.00818,60331.0,60317.0,0.331581]
[1724839131686,0.00818,60331.0,60313.0,0.331603]
[1724839131687,0.78885313,60330.0,60311.0,0.00019959]
[1724839131891,0.331529,60327.0,60311.0,0.00019959]
[1724839132063,0.584,60324.0,60313.0,0.0027]
[1724839132421,0.00019971,60323.0,60313.0,0.0027]
[1724839132643,0.00740522,60323.0,60313.0,0.0027]
[1724839132849,0.3918,60322.0,60313.0,0.0027]
[1724839133057,0.165786,60319.0,60313.0,0.0027]
[1724839133287,0.00019971,60318.0,60313.0,0.0027]
[1724839133501,0.55779771,60314.0,60313.0,0.0027]
[1724839133725,1.40109171,60314.0,60313.0,0.0027]
[1724839134193,1.40829722,60314.0,60313.0,0.0027]
[1724839134463,1.40829722,60314.0,60311.0,0.00019959]
[1724839134464,0.49761171,60312.0,60311.0,0.00019959]
[1724839134692,0.49761171,60312.0,60294.0,0.0009009]
[1724839134693,0.165848,60296.0,60294.0,0.0009009]
[1724839134975,0.1801,60299.0,60294.0,0.0009009]
[1724839134976,0.16605071,60295.0,60294.0,0.0009009]
[1724839135213,0.39920522,60295.0,60294.0,0.0009009]
[1724839135445,0.89675822,60295.0,60294.0,0.0009009]
[1724839135691,1.87232202,60295.0,60294.0,0.0009009]
[1724839135947,0.3918,60284.0,60269.0,0.0008965]
[1724839136392,0.1946,60282.0,60269.0,0.0008965]
[1724839136607,0.165898,60278.0,60269.0,0.0008965]
[1724839136814,0.165898,60278.0,60256.0,0.002]
[1724839136815,0.407,60274.0,60256.0,0.00680029]
[1724839137021,0.407,60274.0,60263.0,0.50540786]
[1724839137229,0.6016,60286.0,60264.0,0.00331839]
[1724839137438,0.00720551,60273.0,60272.0,0.497743]
[1724839137854,0.407,60289.0,60270.0,0.4119]
[1724839138058,0.407,60289.0,60286.0,0.165875]
[1724839138266,0.02549119,60287.0,60270.0,0.4119]
[1724839138468,0.02549119,60287.0,60272.0,0.1976]
[1724839138665,0.02549119,60287.0,60286.0,0.497626]
[1724839138906,0.3982,60298.0,60294.0,0.165853]
[1724839139220,0.165849,60296.0,60277.0,0.165898]
[1724839139349,0.165849,60296.0,60273.0,0.03339]
[1724839139350,0.107663,60295.0,60276.0,0.165902]
[1724839139560,0.107663,60295.0,60272.0,0.363513]
[1724839139561,0.165865,60290.0,60272.0,0.363513]
[1724839139740,0.107663,60295.0,60270.0,0.331839]
[1724839139741,0.3951,60289.0,60270.0,0.331839]
[1724839139969,0.560968,60289.0,60271.0,0.165916]
[1724839140187,0.331748,60287.0,60257.0,0.409]
[1724839140387,0.1943,60288.0,60257.0,0.409]
[1724839140388,0.4138,60286.0,60268.0,0.331847]
[1724839140648,0.4138,60286.0,60258.0,0.00331839]
[1724839140649,0.4138,60286.0,60265.0,0.066515]
[1724839140817,0.4138,60286.0,60268.0,0.165924]
[1724839141023,0.4138,60286.0,60257.0,0.409]
[1724839141024,0.579677,60286.0,60259.0,0.06652]
[1724839141268,0.4138,60286.0,60263.0,0.331877]
[1724839141572,0.4138,60286.0,60285.0,0.165878]
[1724839141739,0.4138,60294.0,60281.0,0.331776]
[1724839141938,0.4138,60294.0,60290.0,0.165862]
[1724839142487,0.00818,60341.0,60280.0,0.33178]
[1724839142488,0.1943,60302.0,60280.0,0.33178]
[1724839142695,0.4138,60312.0,60280.0,0.33178]
[1724839142696,0.6042,60312.0,60296.0,0.331691]
[1724839142888,0.6042,60312.0,60282.0,0.3968]
[1724839143094,0.6042,60312.0,60298.0,0.331684]
[1724839143296,0.6042,60312.0,60302.0,0.33166]
[1724839143508,0.165835,60301.0,60284.0,0.16588]
[1724839143797,0.183,60294.0,60283.0,0.50540786]
[1724839144036,0.183,60294.0,60276.0,0.5952]
[1724839144037,0.183,60294.0,60280.0,0.165892]
[1724839144248,0.183,60294.0,60278.0,0.00331754]
[1724839144454,0.0514686,60293.0,60278.0,0.00331754]
[1724839144644,0.0514686,60293.0,60279.0,0.331788]
[1724839144851,0.0514686,60293.0,60276.0,0.50540786]
[1724839144852,0.00706599,60292.0,60291.0,0.331724]
[1724839145026,0.00706599,60292.0,60291.0,1.38357077]
[1724839145335,0.183,60311.0,60291.0,0.65426077]
[1724839145509,0.183,60311.0,60299.0,0.165839]
[1724839145711,0.183,60311.0,60291.0,0.4858]
[1724839145712,0.00706599,60310.0,60295.0,0.165851]
[1724839145914,0.00706599,60310.0,60282.0,0.3785]
[1724839145915,0.331626,60309.0,60282.0,0.3785]
[1724839146116,0.183,60311.0,60298.0,0.165841]
[1724839146330,0.183,60311.0,60291.0,0.331723]
[1724839146331,0.00706599,60308.0,60291.0,0.331723]
[1724839146540,0.183,60311.0,60292.0,0.331718]
[1724839146733,0.183,60311.0,60282.0,0.88390786]
[1724839146734,0.4154,60306.0,60283.0,0.83717186]
[1724839147087,0.3963,60315.0,60310.0,0.165809]
[1724839147199,0.3963,60315.0,60310.0,0.165808]
[1724839147407,0.3963,60315.0,60307.0,0.331633]
[1724839147631,0.3963,60315.0,60311.0,0.165805]
[1724839147848,0.3963,60315.0,60309.0,0.165811]
[1724839148052,0.3963,60315.0,60302.0,0.331658]
[1724839148251,0.3963,60315.0,60306.0,0.165818]
[1724839148450,0.3963,60315.0,60303.0,0.331657]
[1724839148451,0.3963,60315.0,60303.0,0.331656]
[1724839148652,0.3963,60315.0,60299.0,0.83708386]
[1724839148855,0.3963,60315.0,60301.0,0.1923]
[1724839149102,0.1973,60319.0,60315.0,0.165794]
[1724839149389,0.3844,60321.0,60316.0,0.165792]
[1724839149685,0.3844,60321.0,60314.0,0.331597]
[1724839149686,0.3844,60321.0,60309.0,0.331622]
[1724839149841,0.3844,60321.0,60319.0,0.165784]
[1724839150027,0.3844,60321.0,60306.0,0.331639]
[1724839150233,0.3844,60321.0,60312.0,0.331606]
[1724839150472,0.3844,60321.0,60303.0,0.50540786]
[1724839150649,0.3844,60321.0,60316.0,0.165792]
[1724839150851,0.3844,60321.0,60312.0,0.331606]
[1724839151068,0.000819,60323.0,60301.0,0.1923]
[1724839151069,0.000819,60323.0,60322.0,0.165776]
[1724839151455,0.000819,60323.0,60322.0,0.828882]
[1724839151693,0.000819,60323.0,60322.0,1.245282]
[1724839151927,0.000819,60323.0,60322.0,0.165776]
[1724839152102,0.000819,60323.0,60317.0,0.165789]
[1724839152536,0.000819,60323.0,60322.0,0.165776]
[1724839152761,0.000819,60323.0,60322.0,0.828882]
[1724839152953,0.000819,60323.0,60322.0,1.160435]
[1724839153382,0.00061948,60323.0,60322.0,1.561135]
[1724839153716,0.00061948,60323.0,60322.0,1.892688]
[1724839153893,0.00061948,60323.0,60322.0,1.661135]
[1724839154152,0.00061948,60323.0,60319.0,0.331569]
[1724839154363,0.00061948,60323.0,60309.0,0.22149]
[1724839154564,0.00061948,60323.0,60310.0,0.431618]
[1724839154796,0.00715532,60322.0,60320.0,0.16578]
[1724839154966,0.00715532,60322.0,60308.0,0.4136]
[1724839154967,0.04056748,60321.0,60308.0,0.4136]
[1724839155194,0.4017,60321.0,60293.0,0.3945]
[1724839155343,0.4017,60321.0,60300.0,0.50540786]
[1724839155344,0.00723515,60320.0,60300.0,0.50540786]
[1724839155543,0.00723515,60320.0,60301.0,0.67718496]
[1724839155747,0.00723515,60320.0,60319.0,0.497355]
[1724839155950,0.00723515,60320.0,60319.0,0.828925]
[1724839156180,0.00061948,60323.0,60322.0,0.497329]
[1724839156353,0.00061948,60323.0,60322.0,0.828882]
[1724839156936,0.00061948,60323.0,60322.0,1.160435]
[1724839157338,0.00061948,60323.0,60322.0,0.828882]
[1724839159363,0.00061948,60323.0,60322.0,0.83368229]
[1724839159692,0.00061948,60323.0,60322.0,0.00480029]
[1724839159883,0.00061948,60323.0,60313.0,0.228429]
[1724839159884,0.542479,60322.0,60313.0,0.228429]
[1724839160104,0.45012985,60322.0,60313.0,0.228429]
[1724839160301,0.00723515,60321.0,60313.0,0.23322929]
[1724839160783,0.00723515,60321.0,60316.0,0.165792]
[1724839161137,0.00723515,60321.0,60313.0,0.23322929]
[1724839162104,0.03671648,60320.0,60313.0,0.23322929]
[1724839162306,0.00723515,60321.0,60316.0,0.165792]
[1724839162510,0.00723515,60321.0,60313.0,0.23322929]
[1724839162660,0.3767,60322.0,60313.0,0.228429]
[1724839162863,0.00723515,60320.0,60313.0,0.39902929]
[1724839163119,0.3767,60322.0,60314.0,0.00811614]
[1724839163262,0.3767,60322.0,60321.0,0.165779]
[1724839163451,0.19181948,60323.0,60322.0,0.165776]
[1724839163452,0.00061948,60323.0,60322.0,0.165776]
[1724839163648,0.00061948,60323.0,60322.0,0.828882]
[1724839164099,0.00061948,60323.0,60322.0,1.160435]
[1724839164315,0.00061948,60323.0,60322.0,0.828882]
[1724839164496,0.00061948,60323.0,60322.0,0.497329]
[1724839165368,0.00061948,60323.0,60322.0,0.828882]
[1724839166777,0.00061948,60323.0,60322.0,0.165776]
[1724839167114,0.00061948,60323.0,60314.0,0.00480029]
[1724839167336,0.00061948,60323.0,60309.0,0.4123]
[1724839167536,0.377,60322.0,60314.0,0.00480029]
[1724839167648,0.377,60322.0,60314.0,0.33639729]
[1724839167848,0.377,60322.0,60315.0,0.331591]
[1724839168052,0.377,60322.0,60316.0,0.331584]
[1724839168323,0.377,60322.0,60304.0,0.50540786]
[1724839168324,0.1824,60321.0,60308.0,0.00480029]
[1724839168464,0.379,60320.0,60310.0,0.165808]
[1724839168649,0.379,60320.0,60308.0,0.00480029]
[1724839168860,0.379,60320.0,60309.0,0.331622]
[1724839169279,0.379,60320.0,60310.0,0.165808]
[1724839169480,0.379,60320.0,60308.0,0.00480029]
[1724839169683,0.379,60320.0,60318.0,0.165786]
[1724839169915,0.379,60320.0,60312.0,0.00480029]
[1724839170129,0.379,60320.0,60311.0,0.00480029]
[1724839170327,0.379,60320.0,60310.0,0.165808]
[1724839170531,0.379,60320.0,60312.0,0.165802]
[1724839170753,0.379,60320.0,60311.0,0.00480029]
[1724839171128,0.379,60320.0,60309.0,0.165811]
[1724839171129,0.379,60320.0,60310.0,0.33641629]
[1724839171490,0.379,60320.0,60310.0,0.00480029]
[1724839171777,0.379,60320.0,60310.0,0.33641529]
[1724839172132,0.379,60320.0,60312.0,0.00480029]
[1724839172331,0.379,60320.0,60307.0,0.331633]
[1724839172332,0.379,60320.0,60319.0,0.165785]
[1724839172563,0.379,60320.0,60313.0,0.228429]
[1724839173169,0.379,60320.0,60313.0,0.56003]
[1724839173541,0.379,60320.0,60313.0,0.228429]
[1724839173721,0.00061948,60323.0,60313.0,0.228429]
[1724839173722,0.3857,60318.0,60313.0,0.228429]
[1724839174938,0.00716886,60317.0,60313.0,0.228429]
[1724839175934,0.00696934,60317.0,60313.0,0.228429]
[1724839176362,0.38,60313.0,60299.0,0.00480029]
[1724839176544,0.38,60313.0,60304.0,0.00480029]
[1724839176743,0.38,60313.0,60305.0,0.165823]
[1724839176975,0.5644,60319.0,60310.0,0.00480029]
[1724839177201,0.00715777,60312.0,60311.0,0.165807]
[1724839177404,0.5644,60319.0,60310.0,0.00480029]
[1724839177623,0.5644,60319.0,60310.0,0.17060829]
[1724839177624,0.62090195,60319.0,60310.0,0.17060829]
[1724839177808,0.00715777,60318.0,60310.0,0.33641529]
[1724839178072,0.38,60317.0,60303.0,0.00480029]
[1724839178251,0.38,60317.0,60307.0,0.165817]
[1724839178448,0.00715777,60316.0,60304.0,0.165825]
[1724839178649,0.00715777,60316.0,60303.0,0.33645629]
[1724839178846,0.00715777,60316.0,60313.0,0.1658]
[1724839179312,0.00715777,60316.0,60311.0,0.00480029]
[1724839179607,0.331615,60311.0,60300.0,0.00480029]
[1724839179811,0.00715777,60316.0,60300.0,0.00480029]
[1724839180009,0.165798,60315.0,60303.0,0.165828]
[1724839180217,0.165802,60313.0,60300.0,0.33647329]
[1724839180445,0.33875177,60315.0,60301.0,0.165833]
[1724839180656,0.54891,60310.0,60300.0,0.00480029]
[1724839180860,0.3831,60310.0,60300.0,0.00480029]
[1724839181082,0.3831,60310.0,60301.0,0.165833]
[1724839181290,0.00715777,60309.0,60300.0,0.00480029]
[1724839181499,0.00715777,60309.0,60298.0,0.00480029]
[1724839181700,0.25360628,60308.0,60293.0,0.0008998]
[1724839181915,0.41942228,60308.0,60295.0,0.16585]
[1724839182088,0.00715777,60307.0,60296.0,0.165847]
[1724839182289,0.00715777,60307.0,60293.0,0.3326108]
[1724839182290,0.00715777,60307.0,60299.0,0.165839]
[1724839182490,0.00715777,60307.0,60300.0,0.00480029]
[1724839182702,0.00715777,60307.0,60299.0,0.165839]
[1724839182923,0.00715777,60307.0,60297.0,0.00480029]
[1724839182924,0.00715777,60307.0,60306.0,0.16582]
[1724839183092,0.3831,60310.0,60308.0,0.165813]
[1724839183283,0.3831,60310.0,60305.0,0.00480029]
[1724839183536,0.3831,60310.0,60296.0,0.165847]
[1724839183537,0.52288922,60308.0,60296.0,0.165847]
[1724839183709,0.52288922,60308.0,60297.0,0.165845]
[1724839183940,0.52288922,60308.0,60294.0,0.00480029]
[1724839183941,0.16582,60307.0,60294.0,0.00480029]
[1724839184140,0.00715777,60307.0,60297.0,0.165844]
[1724839184372,0.00715777,60307.0,60294.0,0.00480029]
[1724839184506,0.0747331,60306.0,60294.0,0.00480029]
[1724839184729,0.00715777,60307.0,60300.0,0.00480029]
[1724839184958,0.3831,60310.0,60304.0,0.165825]
[1724839185207,0.3831,60310.0,60300.0,0.00480029]
[1724839185208,0.00715777,60306.0,60300.0,0.17063429]
[1724839185440,0.00715777,60305.0,60301.0,0.165834]
[1724839185689,0.3831,60310.0,60301.0,0.165834]
[1724839185903,0.3831,60310.0,60300.0,0.17063629]
[1724839186117,0.3831,60310.0,60302.0,0.331662]
[1724839186118,0.00715777,60309.0,60302.0,0.331662]
[1724839186333,0.00715777,60309.0,60303.0,0.165828]
[1724839186563,0.00715777,60309.0,60301.0,0.331668]
[1724839186564,0.00715777,60309.0,60301.0,0.165832]
[1724839187255,0.00715777,60309.0,60297.0,0.33649029]
[1724839187481,0.00715777,60309.0,60294.0,0.00570009]
[1724839187482,0.165851,60295.0,60294.0,0.00570009]
[1724839187741,0.165851,60295.0,60294.0,0.0008998]
[1724839187742,0.4048,60295.0,60294.0,0.0008998]
[1724839187948,0.4048,60306.0,60297.0,0.165844]
[1724839188265,0.4048,60306.0,60294.0,0.0008998]
[1724839188266,0.00715777,60295.0,60294.0,0.17155309]
[1724839188462,0.4048,60306.0,60294.0,0.00570009]
[1724839188681,0.06636777,60305.0,60295.0,0.331698]
[1724839188898,0.06636777,60305.0,60294.0,0.0008998]
[1724839188899,0.06636777,60305.0,60294.0,0.00570009]
[1724839189122,0.06636777,60305.0,60295.0,0.16585]
[1724839189577,0.06636777,60305.0,60294.0,0.00550009]
[1724839189578,0.23219177,60305.0,60294.0,0.00550009]
[1724839189804,0.44724498,60304.0,60294.0,0.0006998]
[1724839190029,0.00709872,60303.0,60294.0,0.0006998]
[1724839190488,0.165836,60301.0,60294.0,0.0006998]